fUSD/lending_fUSD_20240714
["ID","MTS","AMOUNT","RATE_DAILY","PERIOD"]
[332077095,1720951847960,-500.0,0.00013753,2]
[332077097,1720951847969,-500.0,0.00013753,2]
[332077099,1720951847979,-1712.4,0.00013753,2]
[332077101,1720951847989,-838.29,0.00013753,2]
[332077103,1720951847998,-151.0,0.00013753,2]
[332077105,1720951848007,-1049.04,0.00013753,2]
[332077107,1720951848017,-500.0,0.00013753,2]
[332077109,1720951848027,-151.0,0.00013753,2]
[332077111,1720951848037,-1389.66,0.00013753,2]
[332077113,1720951848046,-151.0,0.00013753,2]
[332077115,1720951848055,-500.0,0.00013753,2]
[332077116,1720951848065,-151.0,0.00013753,2]
[332077118,1720951848075,-151.0,0.00013753,2]
[332077120,1720951848084,-626.02,0.00013753,2]
[332077122,1720951848094,-769.02,0.00013753,2]
[332077124,1720951848104,-500.0,0.00013753,2]
[332077126,1720951848113,-741.36,0.00013753,2]
[332077128,1720951848123,-500.0,0.00013753,2]
[332077130,1720951848132,-1080.56,0.00013753,2]
[332077132,1720951848142,-1654.9,0.00013753,2]
[332077134,1720951848152,-500.0,0.00013753,2]
[332077136,1720951848165,-5235.61,0.00013753,2]
[332077138,1720951848174,-1356.51,0.00013753,2]
[332077140,1720951848184,-500.0,0.00013753,2]
[332077142,1720951848194,-500.0,0.00013753,2]
[332077144,1720951848204,-1084.9,0.00013753,2]
[332077146,1720951848214,-693.27,0.00013753,2]
[332077148,1720951848224,-500.0,0.00013753,2]
[332077150,1720951848234,-664.02,0.00013753,2]
[332077152,1720951848244,-500.0,0.00013753,2]
[332077154,1720951848253,-328.44838444,0.00013753,2]
[332077156,1720951848263,-264.21878658,0.00013753,2]
[332077158,1720951848272,-880.76,0.00013753,2]
[332077160,1720951848282,-500.0,0.00013753,2]
[332077162,1720951848291,-766.66,0.00013753,2]
[332077164,1720951848300,-500.0,0.00013753,2]
[332077166,1720951848310,-602.75,0.00013753,2]
[332077168,1720951848319,-500.0,0.00013753,2]
[332077170,1720951848328,-725.45,0.00013753,2]
[332077172,1720951848338,-500.0,0.00013753,2]
[332077174,1720951848347,-500.0,0.00013753,2]
[332077175,1720951848356,-500.0,0.00013753,2]
[332077177,1720951848365,-151.0,0.00013753,2]
[332077179,1720951848375,-151.0,0.00013753,2]
[332077181,1720951848384,-1229.62,0.00013753,2]
[332077183,1720951848393,-500.0,0.00013753,2]
[332077185,1720951848402,-504.17,0.00013753,2]
[332077187,1720951848411,-961.65,0.00013753,2]
[332077189,1720951848421,-521.17,0.00013753,2]
[332077191,1720951848431,-686.28,0.00013753,2]
[332077192,1720951848440,-791.41,0.00013753,2]
[332077194,1720951848449,-500.0,0.00013753,2]
[332077196,1720951848458,-540.4,0.00013753,2]
[332077198,1720951848468,-1110.66,0.00013753,2]
[332077200,1720951848477,-705.37,0.00013753,2]
[332077202,1720951848486,-496.99014218,0.00013753,2]
[332077204,1720951848496,-151.0,0.00013753,2]
[332077206,1720951848506,-198.413782,0.00013753,2]
[332077208,1720951848516,-1284.09,0.00013753,2]
[332077210,1720951848526,-500.0,0.00013753,2]
[332077212,1720951848535,-699.23,0.00013753,2]
[332077214,1720951848545,-582.02,0.00013753,2]
[332077216,1720951848555,-979.12,0.00013753,2]
[332077218,1720951848565,-500.0,0.00013753,2]
[332077220,1720951848574,-630.72,0.00013753,2]
[332077222,1720951848584,-500.0,0.00013753,2]
[332077224,1720951848594,-151.0,0.00013753,2]
[332077226,1720951848604,-151.0,0.00013753,2]
[332077228,1720951848614,-151.0,0.00013753,2]
[332077230,1720951848624,-688.76,0.00013753,2]
[332077232,1720951848633,-503.86,0.00013753,2]
[332077234,1720951848643,-500.0,0.00013753,2]
[332077236,1720951848653,-822.45,0.00013753,2]
[332077238,1720951848663,-150.0,0.00013754,2]
[332077240,1720951848674,-478.26290368,0.00013759,2]
[332077242,1720951848683,-150.0,0.00013759,2]
[332077244,1720951848693,-150.0,0.00013763,2]
[332077246,1720951848702,-150.0,0.00013764,2]
[332077248,1720951848712,-150.0,0.00013776,2]
[332077250,1720951848722,-150.0,0.00013778,2]
[332077252,1720951848732,-150.0,0.00013779,2]
[332077254,1720951848742,-500.0,0.00013784,2]
[332077256,1720951848752,-200.0,0.00013784,2]
[332077258,1720951848762,-150.0,0.00013787,2]
[332077260,1720951848773,-1257.87263473,0.00013789,2]
[332077262,1720951848784,-151.0,0.0001379,2]
[332077264,1720951848794,-151.0,0.0001379,2]
[332077266,1720951848804,-151.0,0.0001379,2]
[332077268,1720951848814,-151.0,0.0001379,2]
[332077270,1720951848823,-151.0,0.0001379,2]
[332077272,1720951848833,-150.0,0.0001379,2]
[332077274,1720951848843,-59105.20535143,0.0001379,2]
[332077276,1720951848855,-59105.20535143,0.0001379,2]
[332077278,1720951848866,-59105.20535143,0.0001379,2]
[332077280,1720951848876,-59105.20535143,0.0001379,2]
[332077282,1720951848886,-59105.20535143,0.0001379,2]
[332077284,1720951848896,-59105.20535143,0.0001379,2]
[332077286,1720951848906,-59105.20535143,0.0001379,2]
[332077288,1720951848916,-151.0,0.0001379,2]
[332077290,1720951848925,-151.0,0.0001379,2]
[332077292,1720951848934,-151.0,0.0001379,2]
[332077294,1720951848945,-249.927412,0.0001379,2]
[332077296,1720951848966,-1995.01832,0.0001379,2]
[332077298,1720951848981,-151.0,0.0001379,2]
[332077300,1720951848991,-151.0,0.0001379,2]
[332077302,1720951849001,-151.0,0.0001379,2]
[332077304,1720951849011,-151.0,0.0001379,2]
[332077306,1720951849021,-188.74428,0.0001379,2]
[332077308,1720951849031,-1500.0,0.00013791,2]
[332077310,1720951849041,-150.0,0.00013793,2]
[332077312,1720951849051,-1500.0,0.00013795,2]
[332077314,1720951849061,-500.0,0.00013799,2]
[332077316,1720951849071,-318.59413005,0.00013799,2]
[332077318,1720951849081,-299.428551,0.000138,2]
[332077320,1720951849091,-151.0,0.000138,2]
[332077322,1720951849100,-151.0,0.000138,2]
[332077324,1720951849112,-151.0,0.000138,2]
[332077326,1720951849121,-150.0,0.000138,2]
[332077328,1720951849132,-150.0,0.000138,2]
[332077330,1720951849142,-238413.413725,0.000138,2]
[332077331,1720951849151,-151.0,0.000138,2]
[332077332,1720951849161,-1219.37202408,0.000138,2]
[332077333,1720951849171,-151.0,0.000138,2]
[332077334,1720951849181,-555.6,0.00013808,2]
[332077335,1720951849191,-500.0,0.00013808,2]
[332077336,1720951849201,-549.33,0.00013808,2]
[332077337,1720951849210,-500.0,0.00013808,2]
[332077338,1720951849220,-663.42,0.00013808,2]
[332077340,1720951849230,-729.08,0.00013808,2]
[332077342,1720951849240,-500.0,0.00013808,2]
[332077344,1720951849250,-500.0,0.00013808,2]
[332077346,1720951849260,-500.0,0.00013808,2]
[332077348,1720951849269,-500.0,0.00013808,2]
[332077350,1720951849279,-500.0,0.00013808,2]
[332077352,1720951849289,-500.0,0.00013808,2]
[332077354,1720951849298,-500.0,0.00013808,2]
[332077356,1720951849307,-501.64,0.00013808,2]
[332077358,1720951849317,-626.62,0.00013808,2]
[332077360,1720951849326,-500.0,0.00013808,2]
[332077362,1720951849336,-591.47,0.00013808,2]
[332077364,1720951849345,-500.0,0.00013808,2]
[332077366,1720951849356,-151.0,0.00013808,2]
[332077368,1720951849365,-151.0,0.00013808,2]
[332077370,1720951849375,-500.0,0.00013808,2]
[332077372,1720951849385,-500.0,0.00013808,2]
[332077374,1720951849395,-500.0,0.00013808,2]
[332077376,1720951849405,-500.0,0.00013808,2]
[332077378,1720951849414,-500.0,0.00013808,2]
[332077380,1720951849424,-500.0,0.00013808,2]
[332077382,1720951849434,-500.0,0.00013808,2]
[332077384,1720951849444,-752.06,0.00013808,2]
[332077386,1720951849454,-647.88,0.00013808,2]
[332077389,1720951849464,-621.63932046,0.00013808,2]
[332077391,1720951849473,-500.0,0.00013808,2]
[332077393,1720951849483,-710.55,0.00013808,2]
[332077395,1720951849493,-500.0,0.00013808,2]
[332077397,1720951849503,-874.52,0.00013808,2]
[332077399,1720951849513,-561.67,0.00013808,2]
[332077401,1720951849523,-500.0,0.00013808,2]
[332077403,1720951849533,-513.18,0.00013808,2]
[332077405,1720951849543,-1099.1,0.00013808,2]
[332077407,1720951849553,-577.19,0.00013808,2]
[332077409,1720951849563,-225.5421963,0.00013808,2]
[332077411,1720951849574,-1251.6,0.00013808,2]
[332077413,1720951849584,-500.0,0.00013808,2]
[332077415,1720951849595,-967.36,0.00013808,2]
[332077417,1720951849607,-500.0,0.00013808,2]
[332077419,1720951849617,-500.0,0.00013808,2]
[332077421,1720951849627,-500.0,0.00013808,2]
[332077423,1720951849637,-500.0,0.00013808,2]
[332077425,1720951849648,-500.0,0.00013808,2]
[332077427,1720951849659,-548.38,0.00013808,2]
[332077429,1720951849669,-178.6557114,0.00013808,2]
[332077431,1720951849679,-792.28,0.00013808,2]
[332077433,1720951849689,-1047.45,0.00013808,2]
[332077435,1720951849699,-500.0,0.00013808,2]
[332077437,1720951849709,-500.0,0.00013808,2]
[332077439,1720951849719,-545.88178789,0.00013808,2]
[332077441,1720951849729,-500.0,0.00013808,2]
[332077443,1720951849739,-819.25,0.00013808,2]
[332077446,1720951849750,-798.78,0.00013808,2]
[332077448,1720951849761,-500.0,0.00013808,2]
[332077450,1720951849772,-500.0,0.00013808,2]
[332077452,1720951849783,-702.1,0.00013808,2]
[332077454,1720951849793,-500.0,0.00013808,2]
[332077456,1720951849804,-500.0,0.00013808,2]
[332077459,1720951849817,-528.97,0.00013808,2]
[332077461,1720951849827,-663.77,0.00013808,2]
[332077463,1720951849837,-500.0,0.00013808,2]
[332077465,1720951849849,-258.72911736,0.00013808,2]
[332077467,1720951849859,-567.41,0.00013808,2]
[332077469,1720951849869,-1164.4,0.00013808,2]
[332077471,1720951849879,-500.0,0.00013808,2]
[332077473,1720951849890,-531.52,0.00013808,2]
[332077475,1720951849901,-624.46,0.00013808,2]
[332077478,1720951849912,-769.33,0.00013808,2]
[332077480,1720951849923,-714.55,0.00013808,2]
[332077482,1720951849932,-500.0,0.00013808,2]
[332077483,1720951849943,-1278.3,0.00013808,2]
[332077485,1720951849955,-664.99,0.00013808,2]
[332077487,1720951849964,-664.32,0.00013808,2]
[332077489,1720951849974,-500.0,0.00013808,2]
[332077491,1720951849983,-1397.31,0.00013808,2]
[332077493,1720951849994,-1092.83,0.00013808,2]
[332077495,1720951850003,-500.0,0.00013808,2]
[332077497,1720951850013,-272.07302161,0.00013808,2]
[332077499,1720951850022,-828.97,0.00013808,2]
[332077501,1720951850034,-500.0,0.00013808,2]
[332077503,1720951850044,-500.0,0.00013808,2]
[332077505,1720951850054,-500.0,0.00013808,2]
[332077507,1720951850064,-500.0,0.00013808,2]
[332077509,1720951850073,-500.0,0.00013808,2]
[332077511,1720951850083,-1121.78,0.00013808,2]
[332077513,1720951850093,-500.0,0.00013808,2]
[332077515,1720951850103,-500.0,0.00013808,2]
[332077517,1720951850114,-1221.87,0.00013808,2]
[332077519,1720951850124,-500.0,0.00013808,2]
[332077521,1720951850135,-669.46,0.00013808,2]
[332077523,1720951850146,-500.0,0.00013808,2]
[332077525,1720951850156,-500.0,0.00013808,2]
[332077527,1720951850166,-1065.74,0.00013808,2]
[332077529,1720951850177,-500.0,0.00013808,2]
[332077531,1720951850186,-758.47,0.00013808,2]
[332077533,1720951850195,-500.0,0.00013808,2]
[332077535,1720951850207,-946.33,0.00013808,2]
[332077537,1720951850216,-524.85,0.00013808,2]
[332077540,1720951850226,-863.16,0.00013808,2]
[332077542,1720951850236,-500.0,0.00013808,2]
[332077544,1720951850247,-698.91,0.00013808,2]
[332077546,1720951850257,-500.0,0.00013808,2]
[332077548,1720951850267,-500.0,0.00013808,2]
[332077550,1720951850279,-586.68195479,0.00013808,2]
[332077552,1720951850289,-500.0,0.00013808,2]
[332077554,1720951850299,-695.87,0.00013808,2]
[332077556,1720951850309,-500.0,0.00013808,2]
[332077559,1720951850319,-500.0,0.00013808,2]
[332077561,1720951850332,-830.28,0.00013808,2]
[332077563,1720951850342,-509.11,0.00013808,2]
[332077565,1720951850351,-500.0,0.00013808,2]
[332077567,1720951850362,-1028.67,0.00013808,2]
[332077569,1720951850373,-500.0,0.00013808,2]
[332077571,1720951850382,-756.14,0.00013808,2]
[332077573,1720951850392,-684.67,0.00013808,2]
[332077575,1720951850403,-859.96,0.00013808,2]
[332077578,1720951850414,-500.0,0.00013808,2]
[332077580,1720951850424,-500.0,0.00013808,2]
[332077582,1720951850436,-597.62,0.00013808,2]
[332077584,1720951850447,-500.0,0.00013808,2]
[332077586,1720951850460,-500.0,0.00013808,2]
[332077588,1720951850470,-500.0,0.00013808,2]
[332077590,1720951850480,-943.43,0.00013808,2]
[332077592,1720951850490,-1042.69,0.00013808,2]
[332077595,1720951850499,-500.0,0.00013808,2]
[332077597,1720951850509,-500.0,0.00013808,2]
[332077599,1720951850519,-500.0,0.00013808,2]
[332077601,1720951850530,-575.87,0.00013808,2]
[332077603,1720951850539,-500.0,0.00013808,2]
[332077605,1720951850550,-1061.08,0.00013808,2]
[332077607,1720951850559,-640.1,0.00013808,2]
[332077609,1720951850569,-1072.0,0.00013808,2]
[332077611,1720951850579,-1317.61,0.00013808,2]
[332077613,1720951850590,-500.0,0.00013808,2]
[332077615,1720951850600,-1075.11,0.00013808,2]
[332077617,1720951850611,-500.0,0.00013808,2]
[332077619,1720951850621,-525.42841417,0.00013808,2]
[332077621,1720951850631,-779.93,0.00013808,2]
[332077623,1720951850641,-500.0,0.00013808,2]
[332077624,1720951850651,-708.71,0.00013808,2]
[332077625,1720951850661,-705.94,0.00013808,2]
[332077626,1720951850671,-372.65611197,0.00013808,2]
[332077627,1720951850682,-500.0,0.00013808,2]
[332077628,1720951850692,-879.91,0.00013808,2]
[332077630,1720951850702,-500.0,0.00013808,2]
[332077657,1720951850966,-642.32,0.00013808,2]
[332077660,1720951850981,-500.0,0.00013808,2]
[332077662,1720951850991,-500.0,0.00013808,2]
[332077664,1720951851000,-500.0,0.00013808,2]
[332077666,1720951851009,-500.0,0.00013808,2]
[332077668,1720951851018,-500.0,0.00013808,2]
[332077670,1720951851031,-500.0,0.00013808,2]
[332077672,1720951851039,-1009.1,0.00013808,2]
[332077674,1720951851048,-500.0,0.00013808,2]
[332077676,1720951851058,-500.0,0.00013808,2]
[332077678,1720951851067,-500.0,0.00013808,2]
[332077680,1720951851076,-500.0,0.00013808,2]
[332077682,1720951851085,-500.0,0.00013808,2]
[332077684,1720951851095,-656.61,0.00013808,2]
[332077686,1720951851104,-500.0,0.00013808,2]
[332077688,1720951851114,-1346.69,0.00013808,2]
[332077690,1720951851123,-500.0,0.00013808,2]
[332077692,1720951851134,-1135.02,0.00013808,2]
[332077694,1720951851143,-552.77,0.00013808,2]
[332077696,1720951851152,-500.0,0.00013808,2]
[332077698,1720951851161,-500.0,0.00013808,2]
[332077700,1720951851171,-814.17,0.00013808,2]
[332077702,1720951851180,-373.1733656,0.00013808,2]
[332077704,1720951851189,-500.0,0.00013808,2]
[332077706,1720951851199,-819.52,0.00013808,2]
[332077708,1720951851208,-696.38,0.00013808,2]
[332077710,1720951851217,-500.0,0.00013808,2]
[332077711,1720951851227,-809.82,0.00013808,2]
[332077713,1720951851236,-501.43,0.00013808,2]
[332077715,1720951851245,-565.6,0.00013808,2]
[332077717,1720951851254,-500.0,0.00013808,2]
[332077719,1720951851264,-645.03,0.00013808,2]
[332077721,1720951851273,-500.0,0.00013808,2]
[332077723,1720951851282,-500.0,0.00013808,2]
[332077725,1720951851291,-636.65,0.00013808,2]
[332077727,1720951851301,-249.57897424,0.00013808,2]
[332077729,1720951851310,-500.0,0.00013808,2]
[332077731,1720951851319,-395.50871801,0.00013808,2]
[332077733,1720951851329,-624.0,0.00013808,2]
[332077735,1720951851338,-540.31,0.00013808,2]
[332077737,1720951851347,-500.0,0.00013808,2]
[332077739,1720951851357,-590.91,0.00013808,2]
[332077741,1720951851367,-591.77,0.00013808,2]
[332077743,1720951851376,-500.0,0.00013808,2]
[332077745,1720951851385,-500.0,0.00013808,2]
[332077747,1720951851395,-500.0,0.00013808,2]
[332077749,1720951851404,-500.0,0.00013808,2]
[332077751,1720951851413,-490.39,0.00013808,2]
[332077753,1720951851422,-500.0,0.00013808,2]
[332077755,1720951851431,-500.0,0.00013808,2]
[332077757,1720951851440,-500.0,0.00013808,2]
[332077759,1720951851450,-679.15,0.00013808,2]
[332077761,1720951851459,-500.0,0.00013808,2]
[332077763,1720951851468,-500.0,0.00013808,2]
[332077765,1720951851477,-709.17,0.00013808,2]
[332077767,1720951851486,-500.0,0.00013808,2]
[332077769,1720951851495,-500.0,0.00013808,2]
[332077771,1720951851505,-500.0,0.00013808,2]
[332077773,1720951851514,-500.0,0.00013808,2]
[332077775,1720951851523,-500.0,0.00013808,2]
[332077777,1720951851533,-500.0,0.00013808,2]
[332077779,1720951851542,-543.12,0.00013808,2]
[332077781,1720951851552,-529.2,0.00013808,2]
[332077783,1720951851562,-687.6,0.00013808,2]
[332077785,1720951851571,-500.0,0.00013808,2]
[332077787,1720951851581,-500.0,0.00013808,2]
[332077789,1720951851590,-536.06903023,0.00013808,2]
[332077791,1720951851600,-500.0,0.00013808,2]
[332077793,1720951851610,-579.49,0.00013808,2]
[332077795,1720951851620,-500.0,0.00013808,2]
[332077797,1720951851630,-500.0,0.00013808,2]
[332077799,1720951851639,-845.16,0.00013808,2]
[332077801,1720951851648,-500.0,0.00013808,2]
[332077803,1720951851657,-500.0,0.00013808,2]
[332077805,1720951851667,-777.06,0.00013808,2]
[332077807,1720951851676,-500.0,0.00013808,2]
[332077809,1720951851685,-976.24,0.00013808,2]
[332077811,1720951851694,-1026.17,0.00013808,2]
[332077813,1720951851703,-502.59,0.00013808,2]
[332077815,1720951851713,-766.72,0.00013808,2]
[332077817,1720951851723,-567.02,0.00013808,2]
[332077819,1720951851732,-380.47000092,0.00013808,2]
[332077821,1720951851741,-500.0,0.00013808,2]
[332077823,1720951851751,-500.0,0.00013808,2]
[332077825,1720951851760,-557.06,0.00013808,2]
[332077827,1720951851770,-500.0,0.00013808,2]
[332077829,1720951851779,-500.0,0.00013808,2]
[332077831,1720951851788,-500.0,0.00013808,2]
[332077833,1720951851798,-500.0,0.00013808,2]
[332077835,1720951851807,-500.0,0.00013808,2]
[332077837,1720951851816,-752.08,0.00013808,2]
[332077839,1720951851826,-833.79,0.00013808,2]
[332077841,1720951851836,-500.0,0.00013808,2]
[332077843,1720951851845,-500.0,0.00013808,2]
[332077845,1720951851855,-523.22,0.00013808,2]
[332077847,1720951851865,-671.16,0.00013808,2]
[332077849,1720951851874,-664.48,0.00013808,2]
[332077851,1720951851883,-765.3,0.00013808,2]
[332077853,1720951851893,-151.0,0.00013808,2]
[332077855,1720951851902,-862.73,0.00013808,2]
[332077857,1720951851911,-500.0,0.00013808,2]
[332077859,1720951851921,-151.0,0.00013808,2]
[332077861,1720951851930,-500.0,0.00013808,2]
[332077863,1720951851940,-963.85,0.00013808,2]
[332077865,1720951851952,-500.0,0.00013808,2]
[332077867,1720951851963,-500.0,0.00013808,2]
[332077869,1720951851972,-500.0,0.00013808,2]
[332077871,1720951851982,-500.0,0.00013808,2]
[332077873,1720951851991,-570.85,0.00013808,2]
[332077875,1720951852003,-535.49,0.00013808,2]
[332077876,1720951852013,-151.0,0.00013808,2]
[332077877,1720951852022,-151.0,0.00013808,2]
[332077878,1720951852032,-266.22962691,0.00013808,2]
[332077879,1720951852042,-500.0,0.00013808,2]
[332077880,1720951852051,-745.48,0.00013808,2]
[332077881,1720951852060,-500.0,0.00013808,2]
[332077883,1720951852070,-878.82,0.00013808,2]
[332077885,1720951852079,-500.0,0.00013808,2]
[332077887,1720951852088,-500.0,0.00013808,2]
[332077889,1720951852097,-500.0,0.00013808,2]
[332077891,1720951852107,-500.0,0.00013808,2]
[332077892,1720951852118,-500.0,0.00013808,2]
[332077894,1720951852128,-500.0,0.00013808,2]
[332077896,1720951852137,-745.6,0.00013808,2]
[332077898,1720951852146,-685.51,0.00013808,2]
[332077900,1720951852156,-500.0,0.00013808,2]
[332077902,1720951852165,-500.0,0.00013808,2]
[332077904,1720951852175,-500.0,0.00013808,2]
[332077906,1720951852185,-3662.07,0.00013808,2]
[332077908,1720951852194,-626.41,0.00013808,2]
[332077910,1720951852204,-756.11,0.00013808,2]
[332077912,1720951852214,-606.6,0.00013808,2]
[332077914,1720951852224,-1030.73,0.00013808,2]
[332077916,1720951852234,-648.06,0.00013808,2]
[332077918,1720951852243,-500.0,0.00013808,2]
[332077920,1720951852253,-943.23,0.00013808,2]
[332077922,1720951852262,-962.58,0.00013808,2]
[332077924,1720951852272,-500.0,0.00013808,2]
[332077926,1720951852281,-504.73,0.00013808,2]
[332077928,1720951852291,-500.0,0.00013808,2]
[332077930,1720951852300,-1326.92,0.00013808,2]
[332077932,1720951852310,-870.16,0.00013808,2]
[332077934,1720951852319,-500.0,0.00013808,2]
[332077936,1720951852328,-1095.66,0.00013808,2]
[332077938,1720951852337,-685.36,0.00013808,2]
[332077940,1720951852346,-500.0,0.00013808,2]
[332077942,1720951852356,-500.0,0.00013808,2]
[332077943,1720951852365,-500.0,0.00013808,2]
[332077945,1720951852375,-500.0,0.00013808,2]
[332077947,1720951852384,-571.71,0.00013808,2]
[332077949,1720951852394,-544.57,0.00013808,2]
[332077951,1720951852403,-644.56,0.00013808,2]
[332077953,1720951852412,-902.0,0.00013808,2]
[332077955,1720951852422,-500.0,0.00013808,2]
[332077957,1720951852432,-500.0,0.00013808,2]
[332077959,1720951852442,-737.03,0.00013808,2]
[332077961,1720951852452,-500.0,0.00013808,2]
[332077963,1720951852461,-788.7,0.00013808,2]
[332077965,1720951852470,-500.0,0.00013808,2]
[332077967,1720951852479,-1235.68,0.00013808,2]
[332077969,1720951852489,-578.84,0.00013808,2]
[332077971,1720951852498,-500.0,0.00013808,2]
[332077973,1720951852507,-500.0,0.00013808,2]
[332077975,1720951852517,-500.0,0.00013808,2]
[332077977,1720951852526,-500.0,0.00013808,2]
[332077979,1720951852535,-782.57,0.00013808,2]
[332077981,1720951852545,-1041.85,0.00013808,2]
[332077983,1720951852554,-500.0,0.00013808,2]
[332077984,1720951852563,-786.63,0.00013808,2]
[332077986,1720951852573,-500.0,0.00013808,2]
[332077988,1720951852582,-500.0,0.00013808,2]
[332077990,1720951852593,-500.0,0.00013808,2]
[332077992,1720951852603,-500.0,0.00013808,2]
[332077995,1720951852613,-761.83,0.00013808,2]
[332077997,1720951852622,-979.99,0.00013808,2]
[332077998,1720951852632,-507.59,0.00013808,2]
[332078000,1720951852641,-493.36,0.00013808,2]
[332078002,1720951852650,-500.0,0.00013808,2]
[332078004,1720951852660,-500.0,0.00013808,2]
[332078006,1720951852670,-500.0,0.00013808,2]
[332078008,1720951852679,-648.78,0.00013808,2]
[332078010,1720951852689,-500.0,0.00013808,2]
[332078013,1720951852699,-500.0,0.00013808,2]
[332078015,1720951852708,-815.44,0.00013808,2]
[332078017,1720951852718,-1018.56,0.00013808,2]
[332078019,1720951852727,-588.25,0.00013808,2]
[332078021,1720951852737,-500.0,0.00013808,2]
[332078023,1720951852746,-867.79,0.00013808,2]
[332078025,1720951852756,-500.0,0.00013808,2]
[332078027,1720951852766,-500.0,0.00013808,2]
[332078028,1720951852775,-529.95,0.00013808,2]
[332078029,1720951852785,-890.67,0.00013808,2]
[332078030,1720951852794,-500.0,0.00013808,2]
[332078031,1720951852804,-1085.2,0.00013808,2]
[332078032,1720951852813,-500.0,0.00013808,2]
[332078033,1720951852824,-500.0,0.00013808,2]
[332078034,1720951852834,-1057.73,0.00013808,2]
[332078035,1720951852843,-922.01,0.00013808,2]
[332078036,1720951852855,-204.47553725,0.00013808,2]
[332078037,1720951852864,-848.59,0.00013808,2]
[332078038,1720951852873,-5795.09,0.00013808,2]
[332078039,1720951852885,-558.16,0.00013808,2]
[332078041,1720951852895,-572.85,0.00013808,2]
[332078043,1720951852905,-500.0,0.00013808,2]
[332078045,1720951852915,-1289.76,0.00013808,2]
[332078048,1720951852925,-645.01,0.00013808,2]
[332078050,1720951852935,-500.0,0.00013808,2]
[332078051,1720951852947,-500.0,0.00013808,2]
[332078053,1720951852959,-684.4,0.00013808,2]
[332078055,1720951852969,-1167.06,0.00013808,2]
[332078058,1720951852978,-882.4,0.00013808,2]
[332078060,1720951852988,-624.92,0.00013808,2]
[332078061,1720951852997,-890.83,0.00013808,2]
[332078063,1720951853007,-500.0,0.00013808,2]
[332078065,1720951853016,-500.0,0.00013808,2]
[332078067,1720951853028,-1305.0,0.00013808,2]
[332078069,1720951853039,-500.0,0.00013808,2]
[332078071,1720951853048,-500.0,0.00013808,2]
[332078073,1720951853058,-500.0,0.00013808,2]
[332078075,1720951853067,-840.57,0.00013808,2]
[332078077,1720951853077,-541.49,0.00013808,2]
[332078079,1720951853086,-500.0,0.00013808,2]
[332078081,1720951853096,-500.0,0.00013808,2]
[332078083,1720951853108,-500.0,0.00013808,2]
[332078085,1720951853118,-902.94,0.00013808,2]
[332078087,1720951853128,-1274.86,0.00013808,2]
[332078089,1720951853137,-1012.94,0.00013808,2]